fUSD/lending_fUSD_20250528
["ID","MTS","AMOUNT","RATE_DAILY","PERIOD"]
[362668221,1748391045413,-420.0,0.00019293,2]
[362668222,1748391045422,-552.33,0.00019293,2]
[362668223,1748391045431,-500.32,0.00019293,2]
[362668224,1748391045441,-420.0,0.00019293,2]
[362668225,1748391045450,-591.91,0.00019293,2]
[362668226,1748391045459,-420.0,0.00019293,2]
[362668227,1748391045469,-420.0,0.00019293,2]
[362668228,1748391045479,-420.0,0.00019293,2]
[362668229,1748391045488,-420.0,0.00019293,2]
[362668230,1748391045497,-688.4,0.00019293,2]
[362668231,1748391045507,-420.0,0.00019293,2]
[362668232,1748391045516,-420.0,0.00019293,2]
[362668233,1748391045526,-344.33062945,0.00019293,2]
[362668234,1748391045536,-420.0,0.00019293,2]
[362668235,1748391045545,-420.0,0.00019293,2]
[362668236,1748391045555,-545.21,0.00019293,2]
[362668237,1748391045564,-420.0,0.00019293,2]
[362668238,1748391045574,-420.0,0.00019293,2]
[362668239,1748391045583,-443.18,0.00019293,2]
[362668240,1748391045592,-639.15,0.00019293,2]
[362668241,1748391045601,-1412.47,0.00019293,2]
[362668242,1748391045611,-420.0,0.00019293,2]
[362668243,1748391045621,-480.16,0.00019293,2]
[362668244,1748391045631,-699.93,0.00019293,2]
[362668245,1748391045640,-420.0,0.00019293,2]
[362668246,1748391045649,-789.47,0.00019293,2]
[362668247,1748391045659,-524.61,0.00019293,2]
[362668248,1748391045668,-664.14,0.00019293,2]
[362668249,1748391045677,-420.0,0.00019293,2]
[362668250,1748391045687,-420.0,0.00019293,2]
[362668251,1748391045697,-869.09,0.00019293,2]
[362668252,1748391045706,-420.0,0.00019293,2]
[362668253,1748391045716,-420.0,0.00019293,2]
[362668254,1748391045726,-420.0,0.00019293,2]
[362668255,1748391045736,-550.49,0.00019293,2]
[362668256,1748391045746,-420.0,0.00019293,2]
[362668257,1748391045756,-1372.77,0.00019293,2]
[362668258,1748391045765,-857.29,0.00019293,2]
[362668259,1748391045775,-724.11,0.00019293,2]
[362668260,1748391045785,-484.83,0.00019293,2]
[362668261,1748391045795,-420.0,0.00019293,2]
[362668262,1748391045804,-420.0,0.00019293,2]
[362668263,1748391045814,-554.09,0.00019293,2]
[362668264,1748391045824,-420.0,0.00019293,2]
[362668265,1748391045834,-475.82,0.00019293,2]
[362668266,1748391045844,-558.1,0.00019293,2]
[362668267,1748391045854,-420.0,0.00019293,2]
[362668268,1748391045864,-420.0,0.00019293,2]
[362668269,1748391045875,-800.59,0.00019293,2]
[362668270,1748391045885,-420.0,0.00019293,2]
[362668271,1748391045896,-483.57,0.00019293,2]
[362668272,1748391045906,-723.44,0.00019293,2]
[362668273,1748391045915,-468.6,0.00019293,2]
[362668274,1748391045925,-458.91,0.00019293,2]
[362668275,1748391045935,-739.7,0.00019293,2]
[362668276,1748391045944,-420.0,0.00019293,2]
[362668277,1748391045955,-922.88,0.00019293,2]
[362668278,1748391045964,-420.0,0.00019293,2]
[362668279,1748391045974,-452.53,0.00019293,2]
[362668280,1748391045983,-420.0,0.00019293,2]
[362668281,1748391045993,-420.0,0.00019293,2]
[362668282,1748391046003,-873.83,0.00019293,2]
[362668283,1748391046012,-473.53,0.00019293,2]
[362668284,1748391046025,-554.54,0.00019293,2]
[362668285,1748391046034,-420.0,0.00019293,2]
[362668286,1748391046044,-956.82,0.00019293,2]
[362668287,1748391046054,-720.23,0.00019293,2]
[362668288,1748391046065,-507.8,0.00019293,2]
[362668289,1748391046075,-420.0,0.00019293,2]
[362668290,1748391046085,-492.6,0.00019293,2]
[362668291,1748391046095,-420.0,0.00019293,2]
[362668292,1748391046105,-420.0,0.00019293,2]
[362668293,1748391046114,-665.03,0.00019293,2]
[362668294,1748391046124,-794.56,0.00019293,2]
[362668295,1748391046134,-420.0,0.00019293,2]
[362668296,1748391046144,-420.0,0.00019293,2]
[362668297,1748391046154,-1115.96,0.00019293,2]
[362668298,1748391046164,-1534.21,0.00019293,2]
[362668299,1748391046174,-599.57,0.00019293,2]
[362668300,1748391046183,-420.0,0.00019293,2]
[362668301,1748391046193,-505.22,0.00019293,2]
[362668302,1748391046204,-420.0,0.00019293,2]
[362668303,1748391046214,-428.16,0.00019293,2]
[362668304,1748391046224,-4018.55,0.00019293,2]
[362668305,1748391046235,-420.0,0.00019293,2]
[362668306,1748391046245,-420.0,0.00019293,2]
[362668307,1748391046256,-744.61,0.00019293,2]
[362668308,1748391046265,-420.0,0.00019293,2]
[362668309,1748391046275,-420.0,0.00019293,2]
[362668310,1748391046285,-8514.49,0.00019293,2]
[362668311,1748391046295,-5483.68,0.00019293,2]
[362668312,1748391046305,-620.37,0.00019293,2]
[362668313,1748391046315,-3432.54,0.00019293,2]
[362668314,1748391046324,-596.14,0.00019293,2]
[362668315,1748391046334,-756.33,0.00019293,2]
[362668316,1748391046344,-3989.15,0.00019293,2]
[362668317,1748391046354,-420.0,0.00019293,2]
[362668318,1748391046363,-420.0,0.00019293,2]
[362668319,1748391046374,-990.64,0.00019293,2]
[362668320,1748391046384,-528.13,0.00019293,2]
[362668321,1748391046394,-2027.61,0.00019293,2]
[362668322,1748391046404,-570.94,0.00019293,2]
[362668323,1748391046413,-897.17,0.00019293,2]
[362668324,1748391046423,-2770.06,0.00019293,2]
[362668325,1748391046433,-420.0,0.00019293,2]
[362668326,1748391046445,-1936.68,0.00019293,2]
[362668327,1748391046455,-1318.26,0.00019293,2]
[362668328,1748391046465,-420.0,0.00019293,2]
[362668329,1748391046475,-420.0,0.00019293,2]
[362668330,1748391046485,-420.0,0.00019293,2]
[362668331,1748391046495,-466.36,0.00019293,2]
[362668332,1748391046507,-562.48,0.00019293,2]
[362668333,1748391046517,-582.95,0.00019293,2]
[362668334,1748391046526,-1064.5,0.00019293,2]
[362668335,1748391046535,-1397.81,0.00019293,2]
[362668336,1748391046545,-994.19,0.00019293,2]
[362668337,1748391046554,-1360.98,0.00019293,2]
[362668338,1748391046563,-420.0,0.00019293,2]
[362668339,1748391046573,-420.0,0.00019293,2]
[362668341,1748391046582,-420.0,0.00019293,2]
[362668344,1748391046592,-816.98,0.00019293,2]
[362668345,1748391046601,-798.28,0.00019293,2]
[362668349,1748391046611,-1483.65,0.00019293,2]
[362668351,1748391046620,-420.0,0.00019293,2]
[362668353,1748391046631,-523.49,0.00019293,2]
[362668355,1748391046640,-420.0,0.00019293,2]
[362668356,1748391046650,-372.86,0.00019293,2]
[362668358,1748391046660,-516.54,0.00019293,2]
[362668361,1748391046669,-519.09,0.00019293,2]
[362668363,1748391046679,-758.28,0.00019293,2]
[362668364,1748391046689,-521.87,0.00019293,2]
[362668367,1748391046699,-1938.5,0.00019293,2]
[362668368,1748391046709,-459.19,0.00019293,2]
[362668370,1748391046719,-420.0,0.00019293,2]
[362668372,1748391046728,-538.06,0.00019293,2]
[362668374,1748391046738,-1707.36,0.00019293,2]
[362668376,1748391046748,-3781.67,0.00019293,2]
[362668379,1748391046757,-420.0,0.00019293,2]
[362668381,1748391046767,-420.0,0.00019293,2]
[362668383,1748391046777,-638.54,0.00019293,2]
[362668385,1748391046787,-426.3,0.00019293,2]
[362668387,1748391046797,-1403.81,0.00019293,2]
[362668388,1748391046807,-420.0,0.00019293,2]
[362668390,1748391046818,-2541.39,0.00019293,2]
[362668393,1748391046828,-420.0,0.00019293,2]
[362668394,1748391046838,-1654.13,0.00019293,2]
[362668397,1748391046848,-1551.17,0.00019293,2]
[362668399,1748391046858,-420.0,0.00019293,2]
[362668401,1748391046868,-420.0,0.00019293,2]
[362668403,1748391046879,-562.73,0.00019293,2]
[362668422,1748391047069,-801.81,0.00019293,2]
[362668424,1748391047079,-483.28,0.00019293,2]
[362668427,1748391047090,-420.0,0.00019293,2]
[362668429,1748391047101,-1223.03,0.00019293,2]
[362668430,1748391047112,-707.15,0.00019293,2]
[362668433,1748391047122,-428.63,0.00019293,2]
[362668435,1748391047133,-3106.11,0.00019293,2]
[362668437,1748391047143,-1432.84,0.00019293,2]
[362668439,1748391047152,-896.1,0.00019293,2]
[362668441,1748391047162,-420.0,0.00019293,2]
[362668442,1748391047171,-420.0,0.00019293,2]
[362668445,1748391047181,-445.95,0.00019293,2]
[362668447,1748391047191,-420.0,0.00019293,2]
[362668449,1748391047200,-635.81,0.00019293,2]
[362668450,1748391047209,-420.0,0.00019293,2]
[362668452,1748391047219,-252.91450493,0.00019293,2]
[362668454,1748391047228,-420.0,0.00019293,2]
[362668457,1748391047237,-420.0,0.00019293,2]
[362668459,1748391047247,-4450.01,0.00019293,2]
[362668461,1748391047256,-621.89,0.00019293,2]
[362668463,1748391047266,-3067.85,0.00019293,2]
[362668465,1748391047275,-457.54,0.00019293,2]
[362668467,1748391047285,-840.2,0.00019293,2]
[362668468,1748391047294,-48498.6,0.00019293,2]
[362668470,1748391047303,-577.94,0.00019293,2]
[362668473,1748391047313,-425.41,0.00019293,2]
[362668475,1748391047323,-3606.37,0.00019293,2]
[362668477,1748391047332,-420.0,0.00019293,2]
[362668479,1748391047341,-420.0,0.00019293,2]
[362668481,1748391047351,-2677.29,0.00019293,2]
[362668483,1748391047360,-891.24,0.00019293,2]
[362668485,1748391047370,-420.0,0.00019293,2]
[362668487,1748391047379,-602.2,0.00019293,2]
[362668489,1748391047389,-1988.29,0.00019293,2]
[362668491,1748391047399,-420.0,0.00019293,2]
[362668493,1748391047408,-420.0,0.00019293,2]
[362668495,1748391047418,-420.0,0.00019293,2]
[362668497,1748391047428,-465.36,0.00019293,2]
[362668499,1748391047438,-420.0,0.00019293,2]
[362668501,1748391047447,-571.31,0.00019293,2]
[362668503,1748391047457,-1230.17,0.00019293,2]
[362668505,1748391047466,-1689.88,0.00019293,2]
[362668507,1748391047476,-420.0,0.00019293,2]
[362668509,1748391047485,-501.69,0.00019293,2]
[362668511,1748391047494,-504.66,0.00019293,2]
[362668513,1748391047504,-692.66,0.00019293,2]
[362668515,1748391047514,-900.07,0.00019293,2]
[362668517,1748391047524,-479.21,0.00019293,2]
[362668519,1748391047533,-553.74245145,0.00019293,2]
[362668521,1748391047543,-579.37,0.00019293,2]
[362668523,1748391047552,-490.01,0.00019293,2]
[362668525,1748391047561,-2564.08,0.00019293,2]
[362668527,1748391047571,-838.83,0.00019293,2]
[362668529,1748391047581,-420.0,0.00019293,2]
[362668531,1748391047590,-420.0,0.00019293,2]
[362668533,1748391047599,-528.84,0.00019293,2]
[362668535,1748391047609,-1426.79,0.00019293,2]
[362668537,1748391047618,-420.0,0.00019293,2]
[362668539,1748391047628,-9086.84,0.00019293,2]
[362668541,1748391047637,-1214.5,0.00019293,2]
[362668543,1748391047648,-890.99,0.00019293,2]
[362668545,1748391047657,-492.36,0.00019293,2]
[362668547,1748391047667,-801.8,0.00019293,2]
[362668549,1748391047678,-474.17,0.00019293,2]
[362668551,1748391047688,-658.4,0.00019293,2]
[362668553,1748391047697,-2159.61,0.00019293,2]
[362668555,1748391047707,-1170.31,0.00019293,2]
[362668557,1748391047717,-420.0,0.00019293,2]
[362668559,1748391047727,-420.0,0.00019293,2]
[362668561,1748391047737,-420.0,0.00019293,2]
[362668563,1748391047747,-1086.06,0.00019293,2]
[362668565,1748391047758,-420.0,0.00019293,2]
[362668567,1748391047768,-2957.07,0.00019293,2]
[362668569,1748391047778,-1099.75,0.00019293,2]
[362668571,1748391047788,-420.0,0.00019293,2]
[362668573,1748391047799,-554.56,0.00019293,2]
[362668575,1748391047808,-420.0,0.00019293,2]
[362668577,1748391047817,-420.0,0.00019293,2]
[362668579,1748391047827,-420.0,0.00019293,2]
[362668581,1748391047837,-688.68,0.00019293,2]
[362668583,1748391047847,-1490.91,0.00019293,2]
[362668585,1748391047856,-1330.94,0.00019293,2]
[362668587,1748391047866,-632.86,0.00019293,2]
[362668589,1748391047876,-420.0,0.00019293,2]
[362668591,1748391047886,-815.49,0.00019293,2]
[362668593,1748391047896,-420.0,0.00019293,2]
[362668595,1748391047905,-420.0,0.00019293,2]
[362668597,1748391047915,-849.91,0.00019293,2]
[362668599,1748391047924,-420.0,0.00019293,2]
[362668601,1748391047934,-420.0,0.00019293,2]
[362668603,1748391047944,-420.0,0.00019293,2]
[362668605,1748391047954,-500.31,0.00019293,2]
[362668607,1748391047964,-1680.33,0.00019293,2]
[362668609,1748391047973,-420.0,0.00019293,2]
[362668611,1748391047983,-420.0,0.00019293,2]
[362668613,1748391047993,-420.0,0.00019294,2]
[362668615,1748391048002,-420.0,0.00019294,2]
[362668617,1748391048012,-420.0,0.00019294,2]
[362668619,1748391048026,-420.0,0.00019294,2]
[362668621,1748391048035,-420.0,0.00019294,2]
[362668623,1748391048044,-420.0,0.00019294,2]
[362668625,1748391048054,-714.64,0.00019294,2]
[362668627,1748391048065,-420.0,0.00019294,2]
[362668630,1748391048075,-420.0,0.00019294,2]
[362668631,1748391048085,-420.0,0.00019294,2]
[362668634,1748391048097,-518.27,0.00019294,2]
[362668636,1748391048108,-420.0,0.00019294,2]
[362668638,1748391048117,-420.0,0.00019294,2]
[362668640,1748391048127,-420.0,0.00019294,2]
[362668642,1748391048137,-420.0,0.00019294,2]
[362668644,1748391048147,-420.0,0.00019294,2]
[362668646,1748391048157,-420.0,0.00019294,2]
[362668648,1748391048167,-420.0,0.00019294,2]
[362668649,1748391048176,-601.14,0.00019294,2]
[362668651,1748391048186,-453.01,0.00019294,2]
[362668654,1748391048196,-420.0,0.00019294,2]
[362668656,1748391048206,-758.67,0.00019294,2]
[362668658,1748391048216,-784.29,0.00019294,2]
[362668660,1748391048225,-480.01,0.00019294,2]
[362668661,1748391048235,-420.0,0.00019294,2]
[362668664,1748391048244,-565.15,0.00019294,2]
[362668666,1748391048254,-420.0,0.00019294,2]
[362668668,1748391048264,-420.0,0.00019294,2]
[362668670,1748391048274,-420.0,0.00019294,2]
[362668672,1748391048284,-420.0,0.00019294,2]
[362668674,1748391048293,-558.35,0.00019294,2]
[362668676,1748391048303,-420.0,0.00019294,2]
[362668678,1748391048312,-420.0,0.00019294,2]
[362668680,1748391048322,-579.42,0.00019294,2]
[362668682,1748391048332,-420.0,0.00019294,2]
[362668684,1748391048341,-420.0,0.00019294,2]
[362668686,1748391048351,-420.0,0.00019294,2]
[362668688,1748391048360,-658.92,0.00019294,2]
[362668690,1748391048371,-420.0,0.00019294,2]
[362668692,1748391048381,-420.0,0.00019294,2]
[362668694,1748391048391,-538.99,0.00019294,2]
[362668696,1748391048402,-420.0,0.00019294,2]
[362668698,1748391048413,-420.0,0.00019294,2]
[362668700,1748391048423,-914.33,0.00019294,2]
[362668701,1748391048434,-420.0,0.00019294,2]
[362668702,1748391048444,-420.0,0.00019294,2]
[362668703,1748391048454,-420.0,0.00019294,2]
[362668704,1748391048465,-631.2,0.00019294,2]
[362668705,1748391048475,-464.07,0.00019294,2]
[362668706,1748391048486,-420.0,0.00019294,2]
[362668707,1748391048496,-420.0,0.00019294,2]
[362668708,1748391048506,-491.53,0.00019294,2]
[362668709,1748391048516,-420.0,0.00019294,2]
[362668710,1748391048526,-567.14,0.00019294,2]
[362668711,1748391048536,-420.0,0.00019294,2]
[362668713,1748391048545,-420.0,0.00019294,2]
[362668715,1748391048555,-559.34535906,0.00019294,2]
[362668717,1748391048565,-430.99,0.00019294,2]
[362668719,1748391048575,-744.66,0.00019294,2]
[362668721,1748391048585,-420.0,0.00019294,2]
[362668723,1748391048594,-420.0,0.00019294,2]
[362668725,1748391048604,-420.0,0.00019294,2]
[362668727,1748391048615,-420.0,0.00019294,2]
[362668729,1748391048625,-373.66,0.00019294,2]
[362668731,1748391048635,-750.01,0.00019294,2]
[362668733,1748391048645,-420.0,0.00019294,2]
[362668735,1748391048655,-461.97,0.00019294,2]
[362668737,1748391048665,-420.0,0.00019294,2]
[362668739,1748391048675,-420.0,0.00019294,2]
[362668742,1748391048685,-420.0,0.00019294,2]
[362668743,1748391048695,-420.0,0.00019294,2]
[362668746,1748391048706,-420.0,0.00019294,2]
[362668748,1748391048716,-420.0,0.00019294,2]
[362668750,1748391048725,-328.16313818,0.00019294,2]
[362668751,1748391048735,-420.0,0.00019294,2]
[362668754,1748391048745,-420.0,0.00019294,2]
[362668755,1748391048755,-561.54,0.00019294,2]
[362668758,1748391048765,-1418.49,0.00019294,2]
[362668760,1748391048776,-568.79,0.00019294,2]
[362668762,1748391048786,-420.0,0.00019294,2]
[362668764,1748391048796,-892.18,0.00019294,2]
[362668766,1748391048806,-420.0,0.00019294,2]
[362668768,1748391048817,-420.0,0.00019294,2]
[362668770,1748391048827,-420.0,0.00019294,2]
[362668772,1748391048838,-466.49,0.00019294,2]
[362668774,1748391048847,-420.0,0.00019294,2]
[362668776,1748391048857,-420.0,0.00019294,2]
[362668778,1748391048867,-420.0,0.00019294,2]
[362668780,1748391048878,-420.0,0.00019294,2]
[362668782,1748391048891,-491.27,0.00019294,2]
[362668784,1748391048901,-842.26,0.00019294,2]
[362668786,1748391048913,-455.52,0.00019294,2]
[362668788,1748391048924,-420.0,0.00019294,2]
[362668790,1748391048933,-947.39,0.00019294,2]
[362668792,1748391048944,-1672.29,0.00019294,2]
[362668794,1748391048956,-1422.78,0.00019294,2]
[362668796,1748391048966,-420.0,0.00019294,2]
[362668798,1748391048977,-420.0,0.00019294,2]
[362668800,1748391048987,-420.0,0.00019294,2]
[362668802,1748391048998,-420.0,0.00019294,2]
[362668804,1748391049008,-1315.08,0.00019294,2]
[362668806,1748391049020,-421.93,0.00019294,2]
[362668808,1748391049031,-420.0,0.00019294,2]
[362668810,1748391049041,-420.0,0.00019294,2]
[362668812,1748391049050,-924.99,0.00019294,2]
[362668814,1748391049060,-420.0,0.00019294,2]
[362668816,1748391049070,-420.0,0.00019294,2]
[362668818,1748391049080,-603.37,0.00019294,2]
[362668820,1748391049090,-617.06,0.00019294,2]
[362668822,1748391049100,-617.45,0.00019294,2]
[362668824,1748391049111,-420.0,0.00019294,2]
[362668826,1748391049121,-420.0,0.00019294,2]
[362668828,1748391049131,-420.0,0.00019294,2]
[362668830,1748391049141,-420.0,0.00019294,2]
[362668832,1748391049151,-420.0,0.00019294,2]
[362668834,1748391049162,-420.0,0.00019294,2]
[362668836,1748391049172,-420.0,0.00019294,2]
[362668838,1748391049182,-420.0,0.00019294,2]
[362668840,1748391049192,-500.0,0.00019295,2]
[362668842,1748391049202,-953.01,0.00019295,2]
[362668844,1748391049213,-164.32,0.0001931,2]
[362668846,1748391049223,-226.89316722,0.00019355,2]
[362668848,1748391049232,-3441.4001639,0.00019355,2]
[362668850,1748391049242,-226.89316722,0.00019464,2]
[362668852,1748391049252,-3441.4001639,0.00019464,2]
[362668854,1748391049263,-264.76319155,0.00019557,2]
[362668856,1748391049274,-588.14,0.00019566,2]
[362668858,1748391049285,-481.11,0.00019566,2]
[362668860,1748391049295,-420.0,0.00019566,2]
[362668862,1748391049305,-1143.01,0.00019566,2]
[362668864,1748391049315,-676.68,0.00019566,2]
[362668866,1748391049325,-527.55,0.00019566,2]
[362668868,1748391049335,-3119.66,0.00019566,2]
[362668870,1748391049345,-439.94,0.00019566,2]
[362668872,1748391049355,-674.49,0.00019566,2]
[362668874,1748391049364,-425.93,0.00019566,2]
[362668876,1748391049375,-2090.23,0.00019566,2]
[362668878,1748391049384,-503.09,0.00019566,2]
[362668880,1748391049394,-1434.01,0.00019566,2]
[362668882,1748391049404,-649.59,0.00019566,2]
[362668884,1748391049414,-420.0,0.00019566,2]
[362668886,1748391049423,-497.94,0.00019566,2]
[362668888,1748391049432,-520.06,0.00019566,2]
[362668890,1748391049442,-1461.46,0.00019566,2]
[362668892,1748391049451,-426.01,0.00019566,2]
[362668894,1748391049461,-1290.07,0.00019566,2]
[362668896,1748391049470,-1759.57,0.00019566,2]
[362668898,1748391049479,-420.0,0.00019566,2]
[362668900,1748391049488,-619.54,0.00019566,2]
[362668902,1748391049498,-448.38,0.00019566,2]
[362668904,1748391049508,-907.96,0.00019566,2]
[362668912,1748391049574,-420.0,0.00019566,2]
[362668914,1748391049584,-599.25,0.00019566,2]
[362668916,1748391049594,-1760.3,0.00019566,2]
[362668918,1748391049604,-420.0,0.00019566,2]
[362668920,1748391049613,-420.0,0.00019566,2]
[362668922,1748391049623,-420.0,0.00019566,2]
[362668924,1748391049633,-420.0,0.00019566,2]
[362668926,1748391049643,-667.72,0.00019566,2]
[362668928,1748391049652,-720.43,0.00019566,2]
[362668930,1748391049662,-462.1,0.00019566,2]
[362668932,1748391049672,-456.65,0.00019566,2]
[362668934,1748391049682,-518.22,0.00019566,2]
[362668936,1748391049691,-1591.95,0.00019566,2]
[362668938,1748391049701,-1061.05,0.00019566,2]
[362668940,1748391049710,-153.949749,0.00019566,2]
[362668942,1748391049719,-523.69,0.00019566,2]
[362668944,1748391049729,-1282.42,0.00019566,2]
[362668946,1748391049739,-420.0,0.00019566,2]
[362668948,1748391049749,-463.71,0.00019566,2]
[362668950,1748391049759,-420.0,0.00019566,2]
[362668952,1748391049768,-872.31,0.00019566,2]
[362668954,1748391049778,-521.18,0.00019566,2]
[362668956,1748391049788,-826.01,0.00019566,2]
[362668958,1748391049798,-2055.59,0.00019566,2]
[362668960,1748391049807,-627.88,0.00019566,2]
[362668962,1748391049817,-820.3,0.00019566,2]
[362668964,1748391049826,-420.0,0.00019566,2]
[362668966,1748391049835,-623.6,0.00019566,2]
[362668968,1748391049845,-500.0,0.00019566,2]
[362668970,1748391049855,-420.0,0.00019566,2]
[362668972,1748391049865,-2028.33,0.00019566,2]
[362668974,1748391049874,-420.0,0.00019566,2]
[362668976,1748391049884,-1179.75,0.00019566,2]
[362668978,1748391049894,-561.49,0.00019566,2]
[362668980,1748391049904,-3456.82,0.00019566,2]
[362668982,1748391049913,-532.53,0.00019566,2]
[362668984,1748391049923,-595.44,0.00019566,2]
[362668986,1748391049932,-420.0,0.00019566,2]
[362668988,1748391049942,-500.0,0.00019567,2]
[362668991,1748391049952,-953.01,0.00019567,2]
[362668993,1748391049961,-420.0,0.00019567,2]
[362668995,1748391049971,-420.0,0.00019567,2]
[362668997,1748391049981,-935.85,0.00019567,2]
[362668999,1748391049990,-420.0,0.00019567,2]
[362669000,1748391050000,-513.39,0.00019567,2]
[362669003,1748391050009,-784.15,0.00019567,2]
[362669004,1748391050018,-537.25,0.00019567,2]
[362669006,1748391050028,-533.77,0.00019567,2]
[362669008,1748391050039,-450.85,0.00019567,2]
[362669010,1748391050048,-420.0,0.00019567,2]
[362669013,1748391050058,-420.0,0.00019567,2]
[362669014,1748391050067,-420.0,0.00019567,2]
[362669016,1748391050077,-514.81,0.00019567,2]
[362669018,1748391050087,-420.0,0.00019567,2]
[362669021,1748391050096,-420.0,0.00019567,2]
[362669023,1748391050106,-420.0,0.00019567,2]
[362669025,1748391050116,-420.0,0.00019567,2]
[362669027,1748391050125,-420.0,0.00019567,2]
[362669029,1748391050135,-425.68,0.00019567,2]
[362669030,1748391050145,-623.16,0.00019567,2]
[362669032,1748391050154,-598.96,0.00019567,2]
[362669034,1748391050164,-545.22,0.00019567,2]
[362669036,1748391050176,-420.0,0.00019567,2]
[362669038,1748391050186,-420.0,0.00019567,2]
[362669041,1748391050195,-433.97,0.00019567,2]
[362669042,1748391050205,-420.0,0.00019567,2]
[362669045,1748391050215,-548.97,0.00019567,2]
[362669046,1748391050225,-493.78,0.00019567,2]
[362669048,1748391050234,-420.0,0.00019567,2]
[362669050,1748391050243,-420.0,0.00019567,2]
[362669052,1748391050253,-420.0,0.00019567,2]
[362669055,1748391050262,-1199.16,0.00019567,2]
[362669056,1748391050273,-496.81,0.00019567,2]
[362669058,1748391050282,-433.40196924,0.00019567,2]
[362669060,1748391050291,-448.5,0.00019567,2]
[362669062,1748391050300,-420.0,0.00019567,2]
[362669064,1748391050309,-420.0,0.00019567,2]
[362669066,1748391050319,-749.96,0.00019567,2]
[362669068,1748391050328,-420.0,0.00019567,2]
[362669070,1748391050337,-649.99,0.00019567,2]
[362669072,1748391050346,-250.0,0.00019567,2]
[362669074,1748391050355,-420.0,0.00019567,2]
[362669076,1748391050365,-958.07,0.00019567,2]
[362669078,1748391050374,-483.14,0.00019567,2]
[362669080,1748391050383,-476.53,0.00019567,2]
[362669082,1748391050393,-784.95,0.00019567,2]
[362669084,1748391050402,-495.13,0.00019567,2]
[362669086,1748391050411,-420.0,0.00019567,2]
[362669088,1748391050420,-740.51,0.00019567,2]
[362669090,1748391050430,-420.0,0.00019567,2]
[362669092,1748391050439,-456.19,0.00019567,2]
[362669094,1748391050448,-427.6,0.00019567,2]
[362669096,1748391050457,-420.0,0.00019567,2]
[362669098,1748391050467,-743.98,0.00019567,2]
[362669100,1748391050476,-586.45,0.00019567,2]
[362669102,1748391050486,-420.0,0.00019567,2]
[362669104,1748391050495,-767.7,0.00019567,2]
[362669106,1748391050504,-420.0,0.00019567,2]
[362669108,1748391050513,-442.6,0.00019567,2]
[362669110,1748391050523,-420.0,0.00019567,2]
[362669112,1748391050532,-465.13,0.00019567,2]
[362669114,1748391050541,-420.0,0.00019567,2]
[362669116,1748391050551,-802.61,0.00019567,2]
[362669118,1748391050561,-521.17,0.00019567,2]